fUSD/lending_fUSD_20240620
["ID","MTS","AMOUNT","RATE_DAILY","PERIOD"]
[329976395,1718889044998,-500.0,0.00014261,2]
[329976396,1718889045007,-3587.35,0.00014261,2]
[329976397,1718889045017,-500.0,0.00014261,2]
[329976398,1718889045026,-500.0,0.00014261,2]
[329976399,1718889045035,-745.44,0.00014261,2]
[329976400,1718889045045,-3438.74,0.00014261,2]
[329976401,1718889045055,-731.23,0.00014261,2]
[329976402,1718889045064,-500.0,0.00014261,2]
[329976403,1718889045074,-1474.13,0.00014261,2]
[329976404,1718889045083,-500.0,0.00014261,2]
[329976405,1718889045093,-1479.36,0.00014261,2]
[329976406,1718889045103,-500.0,0.00014261,2]
[329976407,1718889045113,-500.0,0.00014261,2]
[329976408,1718889045123,-1379.07,0.00014261,2]
[329976409,1718889045132,-537.07,0.00014261,2]
[329976410,1718889045142,-696.69,0.00014261,2]
[329976411,1718889045152,-933.45,0.00014261,2]
[329976412,1718889045163,-337.50021249,0.00014261,2]
[329976413,1718889045172,-500.0,0.00014261,2]
[329976414,1718889045181,-500.0,0.00014261,2]
[329976415,1718889045191,-613.44,0.00014261,2]
[329976416,1718889045200,-500.0,0.00014261,2]
[329976417,1718889045210,-500.0,0.00014261,2]
[329976418,1718889045220,-500.0,0.00014261,2]
[329976419,1718889045229,-500.0,0.00014261,2]
[329976420,1718889045239,-1329.3,0.00014261,2]
[329976421,1718889045249,-2111.09,0.00014261,2]
[329976422,1718889045259,-3046.26,0.00014261,2]
[329976423,1718889045268,-842.85,0.00014261,2]
[329976424,1718889045278,-284.23346941,0.00014261,2]
[329976425,1718889045288,-1686.42,0.00014261,2]
[329976426,1718889045298,-1325.0,0.00014261,2]
[329976427,1718889045307,-500.0,0.00014261,2]
[329976428,1718889045316,-500.0,0.00014261,2]
[329976429,1718889045326,-1119.43,0.00014261,2]
[329976430,1718889045335,-2699.68,0.00014261,2]
[329976431,1718889045344,-604.97,0.00014261,2]
[329976432,1718889045353,-871.24,0.00014261,2]
[329976433,1718889045363,-500.0,0.00014261,2]
[329976434,1718889045372,-1518.04,0.00014261,2]
[329976435,1718889045381,-663.75,0.00014261,2]
[329976436,1718889045391,-961.51,0.00014261,2]
[329976437,1718889045400,-1148.29,0.00014261,2]
[329976438,1718889045410,-789.37,0.00014261,2]
[329976439,1718889045420,-500.0,0.00014261,2]
[329976440,1718889045430,-500.0,0.00014261,2]
[329976441,1718889045439,-1115.2,0.00014261,2]
[329976442,1718889045449,-993.71,0.00014261,2]
[329976443,1718889045458,-1499.8,0.00014261,2]
[329976444,1718889045468,-774.85,0.00014261,2]
[329976445,1718889045477,-975.55,0.00014261,2]
[329976446,1718889045487,-150.87412131,0.00014261,2]
[329976447,1718889045496,-500.0,0.00014261,2]
[329976448,1718889045505,-500.0,0.00014261,2]
[329976449,1718889045515,-1328.15,0.00014261,2]
[329976450,1718889045524,-1369.33,0.00014261,2]
[329976451,1718889045534,-500.0,0.00014261,2]
[329976452,1718889045544,-1614.56,0.00014261,2]
[329976453,1718889045553,-1464.21,0.00014261,2]
[329976454,1718889045563,-500.0,0.00014261,2]
[329976455,1718889045572,-551.82358272,0.00014261,2]
[329976456,1718889045581,-500.0,0.00014261,2]
[329976457,1718889045590,-500.0,0.00014261,2]
[329976458,1718889045600,-678.36,0.00014261,2]
[329976459,1718889045609,-2360.33,0.00014261,2]
[329976460,1718889045619,-746.04,0.00014261,2]
[329976461,1718889045628,-500.0,0.00014261,2]
[329976462,1718889045637,-962.19,0.00014261,2]
[329976463,1718889045646,-989.99,0.00014261,2]
[329976464,1718889045656,-1966.1,0.00014261,2]
[329976465,1718889045666,-500.0,0.00014261,2]
[329976466,1718889045675,-1000.01,0.00014261,2]
[329976467,1718889045685,-2364.55,0.00014261,2]
[329976468,1718889045694,-925.59,0.00014261,2]
[329976469,1718889045704,-664.24,0.00014261,2]
[329976470,1718889045713,-2072.71,0.00014261,2]
[329976471,1718889045723,-500.0,0.00014261,2]
[329976472,1718889045735,-3762.6,0.00014262,2]
[329976473,1718889045744,-604.24,0.00014262,2]
[329976474,1718889045762,-903.1,0.00014262,2]
[329976475,1718889045776,-1140.42,0.00014262,2]
[329976476,1718889045791,-1564.5,0.00014262,2]
[329976477,1718889045804,-643.88,0.00014262,2]
[329976478,1718889045817,-785.01,0.00014262,2]
[329976479,1718889045831,-500.0,0.00014262,2]
[329976480,1718889045844,-735.68,0.00014262,2]
[329976481,1718889045860,-3523.88,0.00014262,2]
[329976482,1718889045873,-1913.94,0.00014262,2]
[329976483,1718889045885,-882.95,0.00014262,2]
[329976484,1718889045898,-1493.77,0.00014262,2]
[329976485,1718889045911,-2162.42,0.00014262,2]
[329976486,1718889045923,-3753.46,0.00014262,2]
[329976487,1718889045939,-1324.11,0.00014262,2]
[329976488,1718889045951,-1643.06,0.00014262,2]
[329976489,1718889045963,-500.0,0.00014262,2]
[329976490,1718889045976,-536.3,0.00014262,2]
[329976491,1718889045987,-500.0,0.00014262,2]
[329976492,1718889045999,-1662.94,0.00014262,2]
[329976493,1718889046013,-1691.99,0.00014262,2]
[329976494,1718889046027,-1115.23,0.00014262,2]
[329976495,1718889046041,-500.0,0.00014262,2]
[329976496,1718889046053,-164.12021136,0.00014321,2]
[329976497,1718889046066,-171.25509986,0.00014337,2]
[329976498,1718889046077,-205.39,0.00014384,2]
[329976499,1718889046089,-200.0,0.00014384,2]
[329976500,1718889046102,-1000.0,0.00014384,2]
[329976501,1718889046114,-500.0,0.00014384,2]
[329976502,1718889046126,-200.0,0.00014384,2]
[329976503,1718889046138,-500.0,0.00014384,2]
[329976504,1718889046151,-172.91,0.00014406,2]
[329976505,1718889046163,-345.653203,0.00014431,2]
[329976506,1718889046176,-611.8,0.0001444,2]
[329976507,1718889046187,-612.77,0.0001444,2]
[329976508,1718889046199,-583.16,0.0001444,2]
[329976509,1718889046211,-795.19,0.0001444,2]
[329976510,1718889046223,-721.13,0.0001444,2]
[329976511,1718889046233,-1185.6,0.0001444,2]
[329976512,1718889046245,-6010.14,0.0001444,2]
[329976513,1718889046256,-500.0,0.0001444,2]
[329976514,1718889046268,-1297.78,0.0001444,2]
[329976515,1718889046280,-8201.52,0.0001444,2]
[329976516,1718889046292,-593.69,0.0001444,2]
[329976517,1718889046303,-549.13,0.0001444,2]
[329976518,1718889046315,-1046.52,0.0001444,2]
[329976519,1718889046327,-500.0,0.00014441,2]
[329976520,1718889046338,-500.0,0.00014441,2]
[329976521,1718889046351,-500.0,0.00014441,2]
[329976522,1718889046364,-500.0,0.00014441,2]
[329976523,1718889046376,-4568.72,0.00014441,2]
[329976524,1718889046389,-500.0,0.00014441,2]
[329976525,1718889046400,-500.0,0.00014441,2]
[329976526,1718889046412,-500.0,0.00014441,2]
[329976527,1718889046422,-500.0,0.00014441,2]
[329976528,1718889046432,-500.0,0.00014441,2]
[329976530,1718889046442,-649.42776106,0.00014441,2]
[329976532,1718889046452,-500.0,0.00014441,2]
[329976533,1718889046462,-500.0,0.00014441,2]
[329976535,1718889046473,-500.0,0.00014441,2]
[329976537,1718889046484,-500.0,0.00014441,2]
[329976539,1718889046495,-500.0,0.00014441,2]
[329976540,1718889046506,-500.0,0.00014441,2]
[329976542,1718889046519,-500.0,0.00014441,2]
[329976544,1718889046530,-500.0,0.00014441,2]
[329976545,1718889046541,-500.0,0.00014441,2]
[329976546,1718889046551,-500.0,0.00014441,2]
[329976547,1718889046562,-500.0,0.00014441,2]
[329976548,1718889046574,-500.0,0.00014441,2]
[329976549,1718889046586,-500.0,0.00014441,2]
[329976550,1718889046599,-500.0,0.00014441,2]
[329976551,1718889046611,-500.0,0.00014441,2]
[329976552,1718889046622,-500.0,0.00014441,2]
[329976553,1718889046632,-500.0,0.00014441,2]
[329976554,1718889046643,-500.0,0.00014441,2]
[329976555,1718889046655,-500.0,0.00014441,2]
[329976556,1718889046667,-500.0,0.00014441,2]
[329976557,1718889046678,-500.0,0.00014441,2]
[329976558,1718889046690,-500.0,0.00014441,2]
[329976559,1718889046702,-500.0,0.00014441,2]
[329976560,1718889046713,-500.0,0.00014442,2]
[329976561,1718889046724,-615.2,0.00014442,2]
[329976562,1718889046734,-500.0,0.00014442,2]
[329976563,1718889046744,-171.25509986,0.0001445,2]
[329976564,1718889046755,-164.12021136,0.00014466,2]
[329976565,1718889046766,-524.77,0.00014534,2]
[329976566,1718889046776,-561.46892327,0.00014534,2]
[329976567,1718889046787,-1221.66,0.00014534,2]
[329976568,1718889046799,-676.88,0.00014534,2]
[329976569,1718889046809,-4127.76,0.00014534,2]
[329976570,1718889046820,-1323.79,0.00014534,2]
[329976571,1718889046830,-3601.78,0.00014534,2]
[329976572,1718889046842,-1864.7,0.00014534,2]
[329976574,1718889046857,-1256.08,0.00014534,2]
[329976575,1718889046868,-859.12,0.00014534,2]
[329976576,1718889046879,-500.0,0.00014534,2]
[329976577,1718889046895,-569.16,0.00014534,2]
[329976578,1718889046906,-854.68,0.00014534,2]
[329976579,1718889046917,-500.0,0.00014534,2]
[329976580,1718889046929,-686.83,0.00014534,2]
[329976581,1718889046941,-500.0,0.00014534,2]
[329976582,1718889046952,-920.58,0.00014535,2]
[329976583,1718889046963,-500.0,0.00014535,2]
[329976584,1718889046975,-500.0,0.00014535,2]
[329976585,1718889046987,-500.0,0.00014535,2]
[329976586,1718889046998,-500.0,0.00014535,2]
[329976589,1718889047009,-500.0,0.00014535,2]
[329976590,1718889047021,-487.83313664,0.00014535,2]
[329976592,1718889047033,-500.0,0.00014535,2]
[329976594,1718889047044,-500.0,0.00014535,2]
[329976596,1718889047056,-500.0,0.00014535,2]
[329976598,1718889047067,-500.0,0.00014535,2]
[329976600,1718889047078,-500.0,0.00014535,2]
[329976601,1718889047089,-500.0,0.00014535,2]
[329976603,1718889047100,-150.0,0.00014535,2]
[329976604,1718889047111,-643.87533229,0.00014535,2]
[329976605,1718889047122,-619.87043361,0.00014535,2]
[329976606,1718889047133,-500.0,0.00014535,2]
[329976607,1718889047144,-500.0,0.00014535,2]
[329976608,1718889047155,-500.0,0.00014535,2]
[329976609,1718889047166,-174.96165495,0.00014535,2]
[329976610,1718889047176,-500.0,0.00014535,2]
[329976611,1718889047188,-500.0,0.00014535,2]
[329976612,1718889047198,-500.0,0.00014535,2]
[329976613,1718889047211,-597.95,0.00014535,2]
[329976614,1718889047222,-500.0,0.00014535,2]
[329976615,1718889047232,-500.0,0.00014535,2]
[329976616,1718889047244,-500.0,0.00014535,2]
[329976617,1718889047255,-500.0,0.00014535,2]
[329976618,1718889047265,-500.0,0.00014535,2]
[329976619,1718889047277,-500.0,0.00014535,2]
[329976620,1718889047287,-500.0,0.00014535,2]
[329976621,1718889047299,-500.0,0.00014535,2]
[329976622,1718889047310,-500.0,0.00014535,2]
[329976623,1718889047320,-673.86,0.00014535,2]
[329976624,1718889047332,-630.28698083,0.00014535,2]
[329976625,1718889047344,-500.0,0.00014535,2]
[329976626,1718889047355,-500.0,0.00014535,2]
[329976627,1718889047366,-500.0,0.00014535,2]
[329976628,1718889047377,-500.0,0.00014535,2]
[329976629,1718889047388,-500.0,0.00014535,2]
[329976630,1718889047398,-500.0,0.00014535,2]
[329976631,1718889047409,-500.0,0.00014535,2]
[329976632,1718889047420,-500.0,0.00014535,2]
[329976633,1718889047431,-3576.16,0.00014535,2]
[329976634,1718889047442,-822.61,0.00014535,2]
[329976635,1718889047453,-1533.0,0.00014535,2]
[329976636,1718889047464,-500.0,0.00014535,2]
[329976637,1718889047475,-500.0,0.00014535,2]
[329976638,1718889047486,-614.49545077,0.00014535,2]
[329976639,1718889047496,-12018.55,0.00014535,2]
[329976640,1718889047507,-9352.53,0.00014535,2]
[329976641,1718889047518,-500.0,0.00014535,2]
[329976642,1718889047529,-513.61,0.00014535,2]
[329976643,1718889047539,-500.0,0.00014535,2]
[329976644,1718889047551,-500.0,0.00014535,2]
[329976645,1718889047562,-501.48,0.00014535,2]
[329976646,1718889047572,-500.0,0.00014535,2]
[329976647,1718889047582,-500.0,0.00014535,2]
[329976648,1718889047593,-779.49,0.00014535,2]
[329976649,1718889047604,-926.44,0.00014535,2]
[329976650,1718889047615,-500.0,0.00014535,2]
[329976651,1718889047626,-3587.35,0.00014535,2]
[329976652,1718889047636,-500.0,0.00014535,2]
[329976653,1718889047648,-500.0,0.00014535,2]
[329976654,1718889047659,-3438.74,0.00014535,2]
[329976655,1718889047670,-745.44,0.00014535,2]
[329976656,1718889047681,-731.23,0.00014535,2]
[329976657,1718889047692,-500.0,0.00014535,2]
[329976658,1718889047703,-1474.13,0.00014535,2]
[329976659,1718889047714,-500.0,0.00014535,2]
[329976660,1718889047727,-1479.36,0.00014535,2]
[329976661,1718889047738,-500.0,0.00014535,2]
[329976662,1718889047749,-500.0,0.00014535,2]
[329976663,1718889047760,-1379.07,0.00014535,2]
[329976664,1718889047771,-537.07,0.00014535,2]
[329976665,1718889047782,-696.69,0.00014535,2]
[329976666,1718889047793,-933.45,0.00014535,2]
[329976667,1718889047804,-500.0,0.00014535,2]
[329976668,1718889047814,-500.0,0.00014535,2]
[329976669,1718889047824,-613.44,0.00014535,2]
[329976670,1718889047835,-500.0,0.00014535,2]
[329976671,1718889047846,-500.0,0.00014535,2]
[329976672,1718889047858,-452.86096727,0.00014535,2]
[329976673,1718889047872,-500.0,0.00014535,2]
[329976674,1718889047883,-1329.3,0.00014535,2]
[329976675,1718889047893,-2111.09,0.00014535,2]
[329976676,1718889047906,-3046.26,0.00014535,2]
[329976677,1718889047917,-842.85,0.00014535,2]
[329976678,1718889047928,-1686.42,0.00014535,2]
[329976679,1718889047940,-1325.0,0.00014535,2]
[329976680,1718889047950,-500.0,0.00014535,2]
[329976681,1718889047961,-500.0,0.00014535,2]
[329976682,1718889047972,-1119.43,0.00014535,2]
[329976683,1718889047983,-2699.68,0.00014535,2]
[329976684,1718889047994,-604.97,0.00014535,2]
[329976685,1718889048004,-871.24,0.00014535,2]
[329976686,1718889048015,-500.0,0.00014535,2]
[329976687,1718889048026,-1518.04,0.00014535,2]
[329976688,1718889048037,-663.75,0.00014535,2]
[329976689,1718889048050,-961.51,0.00014535,2]
[329976690,1718889048060,-1148.29,0.00014535,2]
[329976691,1718889048070,-789.37,0.00014535,2]
[329976692,1718889048081,-500.0,0.00014535,2]
[329976693,1718889048091,-500.0,0.00014535,2]
[329976694,1718889048102,-1115.2,0.00014535,2]
[329976695,1718889048112,-993.71,0.00014535,2]
[329976696,1718889048122,-1499.8,0.00014535,2]
[329976697,1718889048133,-774.85,0.00014535,2]
[329976698,1718889048144,-975.55,0.00014535,2]
[329976699,1718889048154,-500.0,0.00014535,2]
[329976700,1718889048165,-500.0,0.00014535,2]
[329976701,1718889048176,-1328.15,0.00014535,2]
[329976702,1718889048186,-1369.33,0.00014535,2]
[329976703,1718889048198,-500.0,0.00014535,2]
[329976704,1718889048209,-1614.56,0.00014535,2]
[329976705,1718889048219,-1464.21,0.00014535,2]
[329976706,1718889048230,-500.0,0.00014535,2]
[329976707,1718889048241,-597.19302425,0.00014535,2]
[329976708,1718889048251,-500.0,0.00014535,2]
[329976709,1718889048261,-678.36,0.00014535,2]
[329976710,1718889048272,-2360.33,0.00014535,2]
[329976711,1718889048282,-746.04,0.00014535,2]
[329976712,1718889048293,-359.47700236,0.00014535,2]
[329976713,1718889048304,-962.19,0.00014535,2]
[329976714,1718889048314,-989.99,0.00014535,2]
[329976715,1718889048324,-1966.1,0.00014535,2]
[329976716,1718889048335,-500.0,0.00014535,2]
[329976717,1718889048345,-1000.01,0.00014535,2]
[329976718,1718889048355,-2364.55,0.00014535,2]
[329976719,1718889048366,-925.59,0.00014535,2]
[329976720,1718889048376,-664.24,0.00014535,2]
[329976721,1718889048386,-2072.71,0.00014535,2]
[329976722,1718889048397,-500.0,0.00014535,2]
[329976723,1718889048407,-3762.6,0.00014536,2]
[329976724,1718889048417,-604.24,0.00014536,2]
[329976725,1718889048428,-903.1,0.00014536,2]
[329976726,1718889048437,-1140.42,0.00014536,2]
[329976727,1718889048448,-1564.5,0.00014536,2]
[329976728,1718889048458,-643.88,0.00014536,2]
[329976729,1718889048469,-785.01,0.00014536,2]
[329976730,1718889048479,-417.3580813,0.00014536,2]
[329976731,1718889048490,-735.68,0.00014536,2]
[329976732,1718889048500,-3523.88,0.00014536,2]
[329976733,1718889048511,-1913.94,0.00014536,2]
[329976734,1718889048522,-882.95,0.00014536,2]
[329976735,1718889048532,-1493.77,0.00014536,2]
[329976736,1718889048544,-2162.42,0.00014536,2]
[329976737,1718889048554,-3753.46,0.00014536,2]
[329976738,1718889048564,-1324.11,0.00014536,2]
[329976739,1718889048575,-1643.06,0.00014536,2]
[329976740,1718889048587,-500.0,0.00014536,2]
[329976741,1718889048598,-536.3,0.00014536,2]
[329976742,1718889048609,-500.0,0.00014536,2]
[329976743,1718889048619,-1662.94,0.00014536,2]
[329976744,1718889048630,-1691.99,0.00014536,2]
[329976745,1718889048641,-1115.23,0.00014536,2]
[329976746,1718889048652,-500.0,0.00014536,2]
[329976747,1718889048662,-160.08,0.00014537,2]
[329976748,1718889048674,-1000.0,0.00014558,2]
[329976749,1718889048685,-171.25509986,0.00014562,2]
[329976750,1718889048696,-355.0,0.000146,2]
[329976751,1718889048706,-1000.0,0.000146,2]
[329976752,1718889048717,-955.0,0.000146,2]
[329976753,1718889048727,-164.12021136,0.00014611,2]
[329976754,1718889048738,-171.25509986,0.00014675,2]
[329976755,1718889048749,-1011.42346815,0.000147,2]
[329976756,1718889048759,-1012.44487775,0.000147,2]
[329976757,1718889048770,-1040.17779186,0.000147,2]
[329976758,1718889048780,-1133.25524601,0.000147,2]
[329976759,1718889048791,-611.8,0.00014714,2]
[329976760,1718889048803,-612.77,0.00014714,2]
[329976761,1718889048814,-583.16,0.00014714,2]
[329976762,1718889048824,-795.19,0.00014714,2]
[329976763,1718889048834,-721.13,0.00014714,2]
[329976764,1718889048846,-1185.6,0.00014714,2]
[329976765,1718889048858,-6010.14,0.00014714,2]
[329976766,1718889048869,-500.0,0.00014714,2]
[329976767,1718889048882,-1297.78,0.00014714,2]
[329976768,1718889048893,-8201.52,0.00014714,2]
[329976769,1718889048906,-593.69,0.00014714,2]
[329976770,1718889048916,-549.13,0.00014714,2]
[329976771,1718889048927,-1046.52,0.00014714,2]
[329976772,1718889048938,-155.08505076,0.00014715,2]
[329976773,1718889048951,-500.0,0.00014715,2]
[329976774,1718889048962,-500.0,0.00014715,2]
[329976775,1718889048973,-500.0,0.00014715,2]
[329976776,1718889048983,-4568.72,0.00014715,2]
[329976777,1718889048994,-500.0,0.00014715,2]
[329976778,1718889049004,-500.0,0.00014715,2]
[329976779,1718889049014,-500.0,0.00014715,2]
[329976780,1718889049024,-500.0,0.00014715,2]
[329976781,1718889049034,-500.0,0.00014715,2]
[329976782,1718889049522,-500.0,0.00014715,2]
[329976783,1718889049540,-500.0,0.00014715,2]
[329976784,1718889049553,-500.0,0.00014715,2]
[329976785,1718889049563,-500.0,0.00014715,2]
[329976786,1718889049571,-500.0,0.00014715,2]
[329976787,1718889049581,-500.0,0.00014715,2]
[329976788,1718889049590,-500.0,0.00014715,2]
[329976789,1718889049600,-500.0,0.00014715,2]
[329976790,1718889049611,-500.0,0.00014715,2]
[329976791,1718889049620,-500.0,0.00014715,2]
[329976792,1718889049630,-500.0,0.00014715,2]
[329976793,1718889049639,-500.0,0.00014715,2]
[329976794,1718889049650,-500.0,0.00014715,2]
[329976795,1718889049661,-500.0,0.00014715,2]
[329976796,1718889049671,-500.0,0.00014715,2]
[329976797,1718889049683,-627.09654478,0.00014715,2]
[329976798,1718889049693,-500.0,0.00014715,2]
[329976799,1718889049703,-500.0,0.00014715,2]
[329976800,1718889049712,-230.43033947,0.00014715,2]
[329976801,1718889049722,-500.0,0.00014715,2]
[329976802,1718889049732,-500.0,0.00014715,2]
[329976803,1718889049744,-500.0,0.00014715,2]
[329976804,1718889049756,-500.0,0.00014715,2]
[329976805,1718889049765,-500.0,0.00014716,2]
[329976806,1718889049775,-544.57021674,0.00014716,2]
[329976807,1718889049785,-164.12021136,0.00014755,2]
[329976808,1718889049796,-171.25509986,0.00014787,2]
[329976809,1718889049806,-1220.299034,0.00014795,2]
[329976810,1718889049815,-524.77,0.00014808,2]
[329976811,1718889049825,-1221.66,0.00014808,2]
[329976812,1718889049835,-676.88,0.00014808,2]
[329976813,1718889049844,-4127.76,0.00014808,2]
[329976814,1718889049855,-1323.79,0.00014808,2]
[329976815,1718889049868,-3601.78,0.00014808,2]
[329976816,1718889049878,-1864.7,0.00014808,2]
[329976817,1718889049888,-1256.08,0.00014808,2]
[329976818,1718889049899,-859.12,0.00014808,2]
[329976819,1718889049908,-500.0,0.00014808,2]
[329976820,1718889049918,-569.16,0.00014808,2]
[329976821,1718889049928,-854.68,0.00014808,2]
[329976822,1718889049939,-500.0,0.00014808,2]
[329976823,1718889049948,-686.83,0.00014808,2]
[329976824,1718889049958,-500.0,0.00014808,2]
[329976825,1718889049967,-920.58,0.00014809,2]
[329976826,1718889049977,-257.48192926,0.00014809,2]
[329976827,1718889049987,-500.0,0.00014809,2]
[329976828,1718889049997,-500.0,0.00014809,2]
[329976829,1718889050006,-500.0,0.00014809,2]
[329976830,1718889050016,-500.0,0.00014809,2]
[329976831,1718889050026,-427.68380429,0.00014809,2]
[329976832,1718889050035,-500.0,0.00014809,2]
[329976833,1718889050046,-155.04728019,0.00014809,2]
[329976834,1718889050056,-500.0,0.00014809,2]
[329976835,1718889050065,-500.0,0.00014809,2]
[329976836,1718889050075,-500.0,0.00014809,2]
[329976837,1718889050084,-150.0,0.00014809,2]
[329976838,1718889050094,-500.0,0.00014809,2]
[329976839,1718889050103,-500.0,0.00014809,2]
[329976840,1718889050112,-500.0,0.00014809,2]
[329976841,1718889050122,-500.0,0.00014809,2]
[329976842,1718889050131,-443.24267754,0.00014809,2]
[329976843,1718889050141,-500.0,0.00014809,2]
[329976844,1718889050150,-597.95,0.00014809,2]
[329976845,1718889050159,-500.0,0.00014809,2]
[329976846,1718889050169,-500.0,0.00014809,2]
[329976847,1718889050179,-500.0,0.00014809,2]
[329976848,1718889050188,-500.0,0.00014809,2]
[329976849,1718889050198,-500.0,0.00014809,2]
[329976850,1718889050207,-500.0,0.00014809,2]
[329976851,1718889050216,-500.0,0.00014809,2]
[329976852,1718889050226,-500.0,0.00014809,2]
[329976853,1718889050236,-500.0,0.00014809,2]
[329976854,1718889050245,-673.86,0.00014809,2]
[329976855,1718889050254,-500.0,0.00014809,2]
[329976856,1718889050264,-500.0,0.00014809,2]
[329976857,1718889050273,-500.0,0.00014809,2]
[329976858,1718889050283,-500.0,0.00014809,2]
[329976859,1718889050292,-500.0,0.00014809,2]
[329976860,1718889050305,-500.0,0.00014809,2]
[329976861,1718889050314,-500.0,0.00014809,2]
[329976862,1718889050324,-500.0,0.00014809,2]
[329976863,1718889050334,-3576.16,0.00014809,2]
[329976864,1718889050343,-822.61,0.00014809,2]
[329976865,1718889050352,-1533.0,0.00014809,2]
[329976866,1718889050362,-500.0,0.00014809,2]
[329976867,1718889050372,-500.0,0.00014809,2]
[329976868,1718889050382,-12018.55,0.00014809,2]
[329976869,1718889050391,-9352.53,0.00014809,2]
[329976870,1718889050400,-500.0,0.00014809,2]
[329976871,1718889050410,-513.61,0.00014809,2]
[329976872,1718889050419,-500.0,0.00014809,2]
[329976873,1718889050429,-418.2471031,0.00014809,2]
[329976874,1718889050438,-501.48,0.00014809,2]
[329976875,1718889050447,-500.0,0.00014809,2]
[329976876,1718889050456,-500.0,0.00014809,2]
[329976877,1718889050466,-779.49,0.00014809,2]
[329976878,1718889050476,-926.44,0.00014809,2]
[329976879,1718889050485,-500.0,0.00014809,2]
[329976880,1718889050495,-3587.35,0.00014809,2]
[329976881,1718889050504,-500.0,0.00014809,2]
[329976882,1718889050515,-500.0,0.00014809,2]
[329976883,1718889050524,-3438.74,0.00014809,2]
[329976884,1718889050533,-745.44,0.00014809,2]
[329976885,1718889050543,-731.23,0.00014809,2]
[329976886,1718889050554,-500.0,0.00014809,2]
[329976887,1718889050563,-1474.13,0.00014809,2]
[329976888,1718889050573,-500.0,0.00014809,2]
[329976889,1718889050582,-1479.36,0.00014809,2]
[329976890,1718889050592,-635.41377807,0.00014809,2]
[329976891,1718889050603,-369.80395067,0.00014809,2]
[329976892,1718889050614,-1379.07,0.00014809,2]
[329976893,1718889050623,-537.07,0.00014809,2]
[329976894,1718889050634,-696.69,0.00014809,2]
[329976895,1718889050644,-933.45,0.00014809,2]
[329976896,1718889050654,-500.0,0.00014809,2]
[329976897,1718889050664,-500.0,0.00014809,2]
[329976898,1718889050673,-613.44,0.00014809,2]
[329976899,1718889050682,-314.36878544,0.00014809,2]
[329976900,1718889050692,-327.83851634,0.00014809,2]
[329976901,1718889050701,-500.0,0.00014809,2]
[329976902,1718889050711,-1329.3,0.00014809,2]
[329976903,1718889050720,-2111.09,0.00014809,2]
[329976904,1718889050730,-3046.26,0.00014809,2]
[329976905,1718889050739,-842.85,0.00014809,2]
[329976906,1718889050748,-1686.42,0.00014809,2]
[329976907,1718889050759,-1325.0,0.00014809,2]
[329976908,1718889050768,-500.0,0.00014809,2]
[329976909,1718889050779,-500.0,0.00014809,2]
[329976910,1718889050788,-1119.43,0.00014809,2]